bitfinex/quotes_BTCUSD_20251226
["timestamp","ask_amount","ask_price","bid_price","bid_amount"]
[1766726360972,0.06752465,88857.0,88854.0,0.0004]
[1766726361930,0.05627124,88856.0,88854.0,0.0004]
[1766726364157,0.06752883,88851.0,88846.0,0.01148]
[1766726364363,0.01125479,88851.0,88846.0,0.01148]
[1766726364580,0.01125479,88851.0,88850.0,0.00091707]
[1766726365241,0.06752744,88853.0,88851.0,0.00055]
[1766726365463,0.01125467,88852.0,88846.0,0.01148]
[1766726365877,0.01125467,88852.0,88851.0,0.00088649]
[1766726366873,0.06752744,88853.0,88852.0,0.00055]
[1766726367067,0.01125467,88852.0,88846.0,0.01148]
[1766726367281,0.06752744,88853.0,88846.0,0.01148]
[1766726367481,0.01125467,88852.0,88846.0,0.01148]
[1766726367682,0.06752744,88853.0,88846.0,0.01148]
[1766726368058,0.01125441,88854.0,88846.0,0.01148]
[1766726368263,0.01125454,88853.0,88846.0,0.01148]
[1766726369422,0.01125479,88851.0,88846.0,0.01148]
[1766726369800,0.01125467,88852.0,88846.0,0.01148]
[1766726370384,0.01125479,88851.0,88846.0,0.01148]
[1766726370803,0.01125467,88852.0,88846.0,0.01148]
[1766726371321,0.01125441,88854.0,88846.0,0.01148]
[1766726371710,0.01125467,88852.0,88846.0,0.01148]
[1766726371910,0.01125454,88853.0,88846.0,0.01148]
[1766726372568,0.01125454,88853.0,88852.0,0.00085592]
[1766726372847,0.06752726,88853.0,88852.0,0.00030692]
[1766726373594,0.01125454,88853.0,88852.0,0.00030692]
[1766726373845,0.01125441,88854.0,88852.0,0.00030692]
[1766726374007,0.01125467,88852.0,88846.0,0.01148]
[1766726374211,0.01125479,88851.0,88846.0,0.01148]
[1766726374430,0.01125467,88852.0,88846.0,0.01148]
[1766726375007,0.01125467,88852.0,88843.0,0.01128]
[1766726375208,0.01125479,88851.0,88843.0,0.01128]
[1766726375771,0.01125492,88850.0,88843.0,0.01128]
[1766726375941,0.01125479,88851.0,88843.0,0.01128]
[1766726376267,0.01125467,88852.0,88843.0,0.01128]
[1766726377599,0.01125479,88851.0,88843.0,0.01128]
[1766726377811,0.01125467,88852.0,88843.0,0.01128]
[1766726378111,0.01125454,88853.0,88843.0,0.01128]
[1766726378685,0.01125467,88852.0,88843.0,0.01128]
[1766726378865,0.01125479,88851.0,88843.0,0.01128]
[1766726379312,0.01125492,88850.0,88843.0,0.01128]
[1766726379753,0.01125505,88849.0,88843.0,0.01128]
[1766726379960,0.01089801,88850.0,88843.0,0.01128]
[1766726380377,0.06752927,88851.0,88843.0,0.01128]
[1766726380581,0.01125505,88849.0,88843.0,0.01128]
[1766726380809,0.01125479,88851.0,88843.0,0.01128]
[1766726382592,0.01125479,88851.0,88838.0,0.045]
[1766726382593,0.01125479,88851.0,88842.0,0.01128]
[1766726383058,0.02253391,88858.0,88851.0,0.000549]
[1766726383286,0.01128,88858.0,88851.0,0.000549]
[1766726383426,0.02480549,88852.0,88843.0,0.42559]
[1766726383834,0.01355082,88852.0,88843.0,0.42559]
[1766726384041,0.02480549,88852.0,88843.0,0.42559]
[1766726384237,0.01125479,88851.0,88843.0,0.42559]
[1766726384418,0.02480549,88852.0,88850.0,0.00036839]
[1766726384620,0.01355082,88852.0,88843.0,0.42559]
[1766726384825,0.02480549,88852.0,88843.0,0.42559]
[1766726385044,0.01355082,88852.0,88843.0,0.42559]
[1766726385456,0.02480549,88852.0,88843.0,0.42559]
[1766726385820,0.01125479,88851.0,88843.0,0.42559]
[1766726386024,0.02480549,88852.0,88843.0,0.42559]
[1766726386462,0.01355082,88852.0,88843.0,0.42559]
[1766726386658,0.01125492,88850.0,88843.0,0.42559]
[1766726386989,0.01125517,88848.0,88842.0,0.01128]
[1766726388496,0.01125492,88850.0,88842.0,0.01128]
[1766726389904,0.01125505,88849.0,88842.0,0.01128]
[1766726390120,0.01125505,88849.0,88842.0,0.01059]
[1766726390448,0.01125467,88852.0,88848.0,0.00042954]
[1766726390621,0.01125479,88851.0,88842.0,0.01059]
[1766726390837,0.01125467,88852.0,88842.0,0.01059]
[1766726391010,0.01125543,88846.0,88843.0,0.39226]
[1766726391214,0.01128,88860.0,88840.0,0.01128]
[1766726391215,0.00055,88842.0,88840.0,0.01128]
[1766726391816,0.01125555,88845.0,88840.0,0.01128]
[1766726392015,0.01125543,88846.0,88840.0,0.01128]
[1766726392402,0.01125555,88845.0,88840.0,0.01128]
[1766726392601,0.01125543,88846.0,88840.0,0.01128]
[1766726393407,0.0112553,88847.0,88840.0,0.01128]
[1766726393612,0.01125543,88846.0,88840.0,0.01128]
[1766726393824,0.01125517,88848.0,88840.0,0.01128]
[1766726394415,0.0112553,88847.0,88836.0,0.0001]
[1766726394617,0.0112553,88847.0,88837.0,0.01128]
[1766726395230,0.01125517,88848.0,88837.0,0.01128]
[1766726395431,0.0112553,88847.0,88837.0,0.01128]
[1766726395633,0.01125517,88848.0,88837.0,0.01128]
[1766726396013,0.0112553,88847.0,88837.0,0.01128]
[1766726396213,0.01125517,88848.0,88846.0,0.00049068]
[1766726396523,0.01125505,88849.0,88847.0,0.01174011]
[1766726396728,8.889e-05,88847.0,88836.0,0.39236]
[1766726396924,0.01125505,88849.0,88837.0,0.01128]
[1766726397223,0.06,88850.0,88837.0,0.01128]
[1766726397424,0.01125505,88849.0,88837.0,0.40354]
[1766726397642,0.07125492,88850.0,88837.0,0.40354]
[1766726397866,0.01125505,88849.0,88837.0,0.40354]
[1766726398070,0.07125492,88850.0,88837.0,0.40354]
[1766726398427,0.05954,88850.0,88837.0,0.40354]
[1766726398683,0.05954,88850.0,88837.0,0.39226]
[1766726398842,0.05954,88850.0,88838.0,0.01128]
[1766726399616,0.05954,88850.0,88838.0,0.40354]
[1766726400133,0.07079492,88850.0,88838.0,0.40354]
[1766726400332,0.05954,88850.0,88838.0,0.40354]
[1766726400533,0.07079492,88850.0,88838.0,0.40354]
[1766726400794,0.05954,88850.0,88838.0,0.40354]
[1766726400965,0.04071643,88850.0,88839.0,0.39226]
[1766726401604,0.01125416,88856.0,88839.0,0.40351631]
[1766726401794,0.01125403,88857.0,88841.0,0.39226]
[1766726402018,0.01125416,88856.0,88841.0,0.39226]
[1766726402157,0.01125429,88855.0,88841.0,0.39226]
[1766726403217,0.01125416,88856.0,88841.0,0.39226]
[1766726404701,0.01125416,88856.0,88839.0,0.01150117]
[1766726404702,0.02431657,88860.0,88847.0,0.39226]
[1766726404903,0.01055431,88859.0,88849.0,0.40351505]
[1766726405111,9.683e-05,88862.0,88849.0,0.39226]
[1766726405112,0.01055435,88858.0,88849.0,0.39226]
[1766726405320,9.683e-05,88862.0,88852.0,0.39226]
[1766726405516,0.01055397,88861.0,88852.0,0.39226]
[1766726405722,9.683e-05,88862.0,88854.0,0.39226]
[1766726405927,9.683e-05,88862.0,88849.0,0.01125505]
[1766726405928,9.683e-05,88862.0,88856.0,0.39226]
[1766726407225,0.0675126,88873.0,88855.0,0.01128]
[1766726407226,0.02431657,88872.0,88860.0,0.05626776]
[1766726407421,0.01054899,88871.0,88864.0,0.01125315]
[1766726407620,0.03034969,88879.0,88864.0,0.01125315]
[1766726407621,0.03377748,88879.0,88865.0,0.01128]
[1766726407850,0.01054845,88878.0,88865.0,0.01128]
[1766726408048,0.01054845,88877.0,88865.0,0.01128]
[1766726408222,0.01054845,88876.0,88865.0,0.01128]
[1766726408409,0.01054845,88875.0,88865.0,0.01128]
[1766726408611,0.01125137,88878.0,88865.0,0.01128]
[1766726408809,0.01054472,88877.0,88865.0,0.01128]
[1766726409065,0.01054472,88876.0,88866.0,0.39226]
[1766726409245,0.29462821,88881.0,88866.0,0.39226]
[1766726409409,0.26085099,88881.0,88866.0,0.39226]
[1766726409610,0.04502721,88885.0,88867.0,0.01125277]
[1766726409815,0.01053968,88884.0,88870.0,0.39226]
[1766726410013,0.01053968,88883.0,88870.0,0.40351239]
[1766726410209,0.03377543,88887.0,88871.0,0.39226]
[1766726410411,0.01053536,88886.0,88872.0,0.40354]
[1766726410609,0.01053536,88885.0,88872.0,0.40354]
[1766726410813,0.01125036,88886.0,88872.0,0.40354]
[1766726411073,0.01053495,88885.0,88872.0,0.40354]
[1766726411268,0.01125036,88886.0,88872.0,0.40354]
[1766726411500,0.0917843,88888.0,88872.0,0.40354]
[1766726411501,0.02428306,88888.0,88875.0,0.39226]
[1766726411770,0.06749811,88892.0,88875.0,0.39226]
[1766726411771,0.02250021,88890.0,88875.0,0.39226]
[1766726411971,0.01053091,88889.0,88875.0,0.39226]
[1766726412154,0.01124985,88890.0,88875.0,0.39226]
[1766726412559,0.01125011,88888.0,88875.0,0.39226]
[1766726413099,0.01125023,88887.0,88875.0,0.39226]
[1766726413298,0.08053157,88892.0,88875.0,0.39226]
[1766726413482,0.01124973,88891.0,88875.0,0.39226]
[1766726413654,0.05624961,88890.0,88875.0,0.39226]
[1766726413835,0.01124973,88891.0,88875.0,0.39226]
[1766726413836,0.0674999,88889.0,88875.0,0.39226]
[1766726414043,0.01125023,88887.0,88875.0,0.39226]
[1766726414888,0.01125049,88885.0,88875.0,0.39226]
[1766726415582,0.01125061,88884.0,88875.0,0.39226]
[1766726415773,0.01128,88895.0,88875.0,0.39226]
[1766726416028,0.01051789,88894.0,88875.0,0.39226]
[1766726416273,0.01128,88895.0,88875.0,0.391711]
[1766726416468,0.01051574,88894.0,88875.0,0.391711]
[1766726416675,0.01128,88895.0,88875.0,0.391711]
[1766726416868,0.01051574,88894.0,88875.0,0.391711]
[1766726417067,0.01128,88895.0,88875.0,0.391711]
[1766726420557,0.01128,88895.0,88876.0,0.01063]
[1766726420736,0.00055,88876.0,88875.0,0.01128]
[1766726420923,0.00055,88876.0,88861.0,0.36492]
[1766726421123,0.00055,88876.0,88862.0,0.01128]
[1766726421324,0.01128,88895.0,88862.0,0.3762]
[1766726421564,0.0105117,88894.0,88862.0,0.3762]
[1766726421744,0.0105117,88893.0,88862.0,0.3762]
[1766726421943,0.01128,88895.0,88862.0,0.3762]
[1766726422138,0.0105117,88894.0,88862.0,0.3762]
[1766726422352,0.0105117,88893.0,88862.0,0.3762]
[1766726422550,0.01128,88895.0,88862.0,0.3762]
[1766726422764,0.01051204,88894.0,88862.0,0.3762]
[1766726422923,0.01128,88895.0,88862.0,0.3762]
[1766726423127,0.01051194,88894.0,88862.0,0.3762]
[1766726423330,0.01128,88895.0,88862.0,0.3762]
[1766726423571,0.01051247,88894.0,88862.0,0.3762]
[1766726423893,0.01128,88895.0,88862.0,0.3762]
[1766726424031,0.01051247,88894.0,88862.0,0.3762]
[1766726424237,0.01128,88895.0,88862.0,0.3762]
[1766726424435,0.01051328,88894.0,88862.0,0.3762]
[1766726424636,0.01051328,88893.0,88862.0,0.3762]
[1766726424993,0.01128,88895.0,88862.0,0.3762]
[1766726425218,0.0105133,88894.0,88862.0,0.3762]
[1766726425423,0.0105133,88893.0,88862.0,0.3762]
[1766726425559,0.01128,88895.0,88862.0,0.3762]
[1766726425754,0.01051435,88894.0,88862.0,0.3762]
[1766726425959,0.01051435,88893.0,88862.0,0.3762]
[1766726426278,0.01128,88895.0,88862.0,0.3762]
[1766726426279,0.01051462,88892.0,88862.0,0.3762]
[1766726426610,0.01051462,88891.0,88862.0,0.3762]
[1766726426833,0.01051462,88890.0,88862.0,0.3762]
[1766726427115,0.01051462,88889.0,88862.0,0.3762]
[1766726427350,0.01051462,88888.0,88863.0,0.01128]
[1766726427598,0.03377516,88893.0,88863.0,0.01128]
[1766726427753,0.01128,88895.0,88860.0,0.00035898]
[1766726427754,0.01355082,88883.0,88860.0,0.00035898]
[1766726427974,0.01128,88882.0,88861.0,0.01128]
[1766726428264,0.01128,88882.0,88862.0,0.01128]
[1766726428503,0.01052112,88881.0,88863.0,0.01128]
[1766726428715,0.01128,88882.0,88863.0,0.01128]
[1766726428864,0.01052123,88881.0,88863.0,0.01073]
[1766726429067,0.01128,88882.0,88863.0,0.01073]
[1766726429246,0.01052185,88881.0,88863.0,0.01073]
[1766726429445,0.01128,88882.0,88847.0,0.36492]
[1766726429446,0.01355082,88869.0,88847.0,0.36492]
[1766726429723,0.01391001,88869.0,88848.0,0.01128]
[1766726430871,0.00035919,88869.0,88849.0,0.36492]
[1766726436184,1.9e-07,88869.0,88849.0,0.36492]
[1766726437287,1.9e-07,88869.0,88857.0,0.36492]
[1766726437484,1.9e-07,88869.0,88859.0,0.36492]
[1766726437908,0.02423279,88883.0,88859.0,0.36492]
[1766726438108,0.0105317,88882.0,88859.0,0.36527919]
[1766726438314,0.03033225,88891.0,88859.0,0.36527919]
[1766726438515,0.01053157,88890.0,88882.0,0.00019]
[1766726438695,0.01053157,88889.0,88876.0,0.01128]
[1766726438896,0.01355082,88893.0,88876.0,0.01128]
[1766726438897,0.01053157,88888.0,88876.0,0.01128]
[1766726439103,0.01053157,88887.0,88876.0,0.01128]
[1766726439303,0.01053157,88886.0,88876.0,0.01128]
[1766726439511,0.01355082,88893.0,88876.0,0.01128]
[1766726439709,0.0105314,88892.0,88876.0,0.01128]
[1766726440069,0.01355082,88893.0,88876.0,0.01128]
[1766726440070,0.0105314,88891.0,88876.0,0.01128]
[1766726440184,0.0105314,88890.0,88876.0,0.01128]
[1766726440381,0.0105314,88889.0,88876.0,0.01128]
[1766726440625,0.0105314,88888.0,88876.0,0.01128]
[1766726440828,0.0105314,88887.0,88876.0,0.01128]
[1766726441027,0.0105314,88886.0,88876.0,0.01128]
[1766726441255,0.01355082,88893.0,88876.0,0.01128]
[1766726441406,0.01053137,88892.0,88876.0,0.01128]
[1766726441640,0.01053137,88891.0,88876.0,0.01128]
[1766726441879,0.01355082,88893.0,88876.0,0.01128]
[1766726441880,0.06,88885.0,88876.0,0.01128]
[1766726442879,0.04505353,88897.0,88877.0,0.36492]
[1766726442880,0.03033225,88895.0,88877.0,0.36492]
[1766726443093,0.01053142,88894.0,88877.0,0.36492]
[1766726443242,0.01053142,88894.0,88876.0,0.01128]
[1766726443243,0.01053142,88893.0,88876.0,0.01128]
[1766726446296,0.01053142,88893.0,88871.0,0.36492]
[1766726446522,0.01053142,88893.0,88877.0,0.01128]
[1766726447167,0.01053142,88893.0,88877.0,0.010921]
[1766726448395,0.00953142,88893.0,88877.0,0.010921]
[1766726450643,0.04388307,88894.0,88877.0,0.010921]
[1766726451041,0.04388307,88894.0,88871.0,0.36492]
[1766726451204,0.03033225,88893.0,88875.0,0.01128]
[1766726451409,0.04388307,88894.0,88875.0,0.01128]
[1766726451743,0.04388307,88894.0,88870.0,0.01128]
[1766726452275,0.03033225,88893.0,88870.0,0.01128]
[1766726452876,0.03033225,88893.0,88859.0,0.00035919]
[1766726453077,0.03033225,88893.0,88860.0,0.33799]
[1766726453078,0.27993225,88893.0,88860.0,0.33799]
[1766726453305,0.05804268,88892.0,88860.0,0.33799]
[1766726460296,0.05804268,88892.0,88862.0,0.32671]
[1766726460297,0.03781662,88892.0,88862.0,0.32671]
[1766726460509,0.01053591,88891.0,88862.0,0.32671]
[1766726460721,0.01053591,88890.0,88862.0,0.32671]
[1766726460933,0.02181591,88889.0,88862.0,0.32671]
[1766726461139,0.01053591,88888.0,88862.0,0.32671]
[1766726461368,0.01053591,88887.0,88862.0,0.32671]
[1766726461609,0.01053591,88886.0,88862.0,0.32671]
[1766726461779,0.01053591,88885.0,88862.0,0.32671]
[1766726462140,0.01128,88889.0,88862.0,0.32671]
[1766726462324,0.01053881,88888.0,88862.0,0.32671]
[1766726462540,0.01053881,88887.0,88862.0,0.32671]
[1766726462690,0.01053881,88886.0,88862.0,0.32671]
[1766726462891,0.01053881,88885.0,88862.0,0.32671]
[1766726463083,0.01128,88889.0,88862.0,0.32671]
[1766726463328,0.01054064,88888.0,88862.0,0.32671]
[1766726463505,0.01054064,88887.0,88862.0,0.32671]
[1766726463712,0.01054064,88886.0,88862.0,0.32671]
[1766726463912,0.01054064,88885.0,88862.0,0.32671]
[1766726464132,0.01054064,88884.0,88862.0,0.32671]
[1766726464314,0.01054064,88883.0,88862.0,0.32671]
[1766726464539,0.01128,88889.0,88862.0,0.32671]
[1766726464682,0.01054343,88888.0,88862.0,0.32671]
[1766726464885,0.01054343,88887.0,88862.0,0.32671]
[1766726465092,0.00999443,88886.0,88861.0,0.01355082]
[1766726465291,0.01128,88889.0,88862.0,0.32671]
[1766726467235,0.04161225,88889.0,88862.0,0.32671]
[1766726471220,0.03033225,88888.0,88863.0,0.33799]
[1766726472355,0.02920708,88886.0,88863.0,0.33799]
[1766726472560,0.00014946,88877.0,88863.0,0.33799]
[1766726475191,0.00014946,88877.0,88866.0,0.27986]
[1766726477044,0.00014946,88877.0,88865.0,0.01355082]
[1766726477045,0.00014946,88877.0,88868.0,0.27986]
[1766726478601,0.01128,88889.0,88868.0,0.27986]
[1766726478814,0.01055558,88888.0,88868.0,0.27986]
[1766726479015,0.01055558,88887.0,88868.0,0.27986]
[1766726479164,0.01055558,88886.0,88868.0,0.27986]
[1766726479383,0.01055558,88885.0,88868.0,0.27986]
[1766726479594,0.01055558,88884.0,88868.0,0.27986]
[1766726479817,0.01055558,88883.0,88868.0,0.27986]
[1766726480017,0.01055558,88882.0,88868.0,0.27986]
[1766726480184,0.01055558,88881.0,88868.0,0.27986]
[1766726480386,0.01055558,88880.0,88868.0,0.27986]
[1766726480696,0.01055558,88879.0,88868.0,0.27986]
[1766726480908,0.01055558,88878.0,88868.0,0.27986]
[1766726481244,0.01128,88889.0,88868.0,0.27986]
[1766726481369,0.01055543,88888.0,88868.0,0.27986]
[1766726481571,0.01055543,88887.0,88868.0,0.27986]
[1766726481773,0.01055543,88886.0,88868.0,0.27986]
[1766726481971,0.01128,88889.0,88868.0,0.27986]
[1766726481972,0.01055543,88885.0,88868.0,0.27986]
[1766726482174,0.01055543,88884.0,88868.0,0.27986]
[1766726482376,0.01055543,88883.0,88868.0,0.27986]
[1766726482583,0.01055543,88882.0,88868.0,0.27986]
[1766726482821,0.01055543,88881.0,88868.0,0.27986]
[1766726483024,0.01055543,88880.0,88868.0,0.27986]
[1766726483251,0.01055543,88879.0,88868.0,0.27986]
[1766726483396,0.01128,88889.0,88868.0,0.27986]
[1766726483397,0.01055543,88878.0,88868.0,0.27986]
[1766726483599,0.01128,88889.0,88868.0,0.27986]
[1766726483802,0.01055536,88888.0,88868.0,0.27986]
[1766726484003,0.05625548,88881.0,88868.0,0.27986]
[1766726484391,0.01055536,88880.0,88869.0,0.01128]
[1766726484599,0.01055536,88879.0,88869.0,0.01128]
[1766726484738,0.01055536,88878.0,88869.0,0.29114]
[1766726484968,0.05625422,88883.0,88869.0,0.29114]
[1766726485280,0.06681009,88882.0,88869.0,0.29114]
[1766726485626,0.01055533,88881.0,88869.0,0.29114]
[1766726485827,0.01055533,88880.0,88869.0,0.29114]
[1766726486043,0.01055533,88879.0,88869.0,0.29114]
[1766726486210,0.01055533,88878.0,88869.0,0.29114]
[1766726486431,0.01125087,88882.0,88869.0,0.29114]
[1766726486714,0.02180628,88881.0,88869.0,0.29114]
[1766726486857,0.01055529,88880.0,88869.0,0.29114]
[1766726487058,0.01055529,88879.0,88869.0,0.29114]
[1766726487319,0.01055529,88878.0,88869.0,0.29114]
[1766726487516,0.01125087,88882.0,88869.0,0.29114]
[1766726487716,0.01055527,88881.0,88869.0,0.29114]
[1766726487861,0.01055527,88880.0,88869.0,0.29114]
[1766726488078,0.01055527,88879.0,88869.0,0.29114]
[1766726488284,0.01055527,88878.0,88869.0,0.29114]
[1766726488505,0.01125099,88881.0,88869.0,0.29114]
[1766726488709,0.01055525,88880.0,88869.0,0.29114]
[1766726488909,0.01055525,88879.0,88869.0,0.29114]
[1766726489114,0.01055525,88878.0,88869.0,0.29114]
[1766726489349,0.01125099,88881.0,88869.0,0.29114]
[1766726489669,0.01055523,88880.0,88869.0,0.01128]
[1766726489845,0.01055523,88879.0,88869.0,0.01128]
[1766726490047,0.01055523,88878.0,88869.0,0.01128]
[1766726490268,0.0242658,88882.0,88869.0,0.01128]
[1766726490456,0.01055527,88881.0,88869.0,0.01128]
[1766726490676,0.01055527,88880.0,88869.0,0.01128]
[1766726490868,0.01125074,88883.0,88869.0,0.01128]
[1766726490869,0.01055527,88879.0,88869.0,0.01128]
[1766726491049,0.01055527,88878.0,88869.0,0.01128]
[1766726491232,0.01125061,88884.0,88869.0,0.01128]
[1766726491431,0.02180605,88883.0,88869.0,0.01128]
[1766726491637,0.01055531,88882.0,88869.0,0.01128]
[1766726491836,0.01055531,88881.0,88869.0,0.01128]
[1766726492060,0.01055531,88880.0,88869.0,0.01128]
[1766726492273,0.01055531,88879.0,88869.0,0.01128]
[1766726492540,0.01055531,88878.0,88869.0,0.01128]
[1766726492746,0.0242658,88883.0,88878.0,0.00055]
[1766726492875,0.01055491,88882.0,88870.0,0.27986]
[1766726493081,0.01055491,88881.0,88870.0,0.27986]
[1766726493282,0.01125049,88885.0,88870.0,0.27986]
[1766726493477,0.01055484,88884.0,88870.0,0.27986]
[1766726493677,0.01055484,88883.0,88870.0,0.27986]
[1766726493902,0.01055484,88882.0,88870.0,0.27986]
[1766726494108,0.01055484,88881.0,88870.0,0.27986]
[1766726494419,0.01125049,88885.0,88870.0,0.27986]
[1766726494646,0.01055471,88884.0,88870.0,0.27986]
[1766726494940,0.01055471,88883.0,88870.0,0.27986]
[1766726495269,0.01055471,88882.0,88870.0,0.27986]
[1766726495440,0.01055471,88881.0,88870.0,0.27986]
[1766726495754,0.03551616,88886.0,88870.0,0.29111239]
[1766726495926,0.01055458,88885.0,88870.0,0.29111239]
[1766726496108,0.01055458,88884.0,88870.0,0.29111239]
[1766726496292,0.01055458,88883.0,88870.0,0.29111239]
[1766726496501,0.01055458,88882.0,88870.0,0.29111239]
[1766726496746,0.01055458,88881.0,88870.0,0.29111239]
[1766726496902,0.01125036,88886.0,88870.0,0.29111239]
[1766726497102,0.01055445,88885.0,88870.0,0.29111239]
[1766726497308,0.01055445,88884.0,88871.0,0.01128]
[1766726497509,0.01055445,88883.0,88871.0,0.01128]
[1766726497758,0.01055445,88882.0,88871.0,0.01128]
[1766726497974,0.01055445,88881.0,88871.0,0.01128]
[1766726498183,0.01125011,88888.0,88871.0,0.02253226]
[1766726498382,0.01055418,88887.0,88872.0,0.01125213]
[1766726498597,0.01055418,88887.0,88871.0,0.02253226]
[1766726498598,0.01055418,88886.0,88871.0,0.02253226]
[1766726498751,0.01055418,88885.0,88871.0,0.02253226]
[1766726498951,0.01055418,88884.0,88871.0,0.01128]
[1766726499150,0.01055418,88883.0,88871.0,0.01128]
[1766726499356,0.01055418,88882.0,88871.0,0.02253226]
[1766726499561,0.01055418,88881.0,88871.0,0.01128]
[1766726499744,0.01125036,88886.0,88871.0,0.01128]
[1766726499948,0.01055406,88885.0,88871.0,0.01128]
[1766726500170,0.01055406,88884.0,88871.0,0.01128]
[1766726500498,0.01055406,88883.0,88871.0,0.01128]
[1766726500798,0.01055406,88882.0,88873.0,0.01125201]
[1766726501028,0.01055406,88881.0,88873.0,0.29111201]
[1766726501240,0.0355154,88892.0,88883.0,0.00055]
[1766726501445,0.01124998,88889.0,88883.0,0.01183]
[1766726501619,0.01124998,88889.0,88883.0,0.01128]
[1766726501620,0.01055365,88888.0,88883.0,0.01128]
[1766726501843,0.06749839,88891.0,88883.0,0.01128]
[1766726501844,0.01055365,88887.0,88883.0,0.01128]
[1766726501963,0.01055365,88886.0,88883.0,0.01128]
[1766726502170,0.01055365,88885.0,88883.0,0.01128]
[1766726502394,0.01055365,88884.0,88883.0,0.01128]
[1766726504747,3.65e-06,88884.0,88883.0,0.27464]
[1766726504952,0.001,88893.0,88884.0,0.26391]
[1766726505152,0.001,88893.0,88884.0,0.26336]
[1766726509360,0.01224947,88893.0,88884.0,0.26336]
[1766726510124,0.01224947,88893.0,88875.0,0.01128]
[1766726510125,0.01125112,88880.0,88875.0,0.01128]
[1766726510340,0.01125087,88882.0,88865.0,0.25218]
[1766726510511,0.01125087,88882.0,88866.0,0.26346]
[1766726510512,0.01125099,88881.0,88866.0,0.26346]
[1766726511095,0.01125125,88879.0,88866.0,0.26346]
[1766726511299,0.01125112,88880.0,88866.0,0.26346]
[1766726511524,0.01125125,88879.0,88866.0,0.26346]
[1766726512085,0.01125112,88880.0,88866.0,0.26346]
[1766726512392,0.01125125,88879.0,88866.0,0.26346]
[1766726513043,0.01125112,88880.0,88866.0,0.26346]
[1766726513595,0.01125125,88879.0,88866.0,0.26346]
[1766726514094,0.01125137,88878.0,88866.0,0.26346]
[1766726514537,0.01125125,88879.0,88866.0,0.26346]
[1766726515341,0.01125137,88878.0,88866.0,0.26346]
[1766726515868,0.01125112,88880.0,88866.0,0.26346]
[1766726516481,0.01125011,88888.0,88881.0,0.25218]
[1766726516737,0.01125023,88887.0,88876.0,0.25218]
[1766726516936,0.01125023,88887.0,88870.0,0.01125239]
[1766726516937,0.01125023,88887.0,88882.0,0.09454479]
[1766726519019,0.01128,88883.0,88871.0,0.01125226]
[1766726519219,0.01128,88883.0,88873.0,0.25218]
[1766726521554,0.02253074,88883.0,88873.0,0.25218]
[1766726521763,0.06,88879.0,88873.0,0.25218]
[1766726526817,0.02430933,88889.0,88879.0,0.01125125]
[1766726527022,0.10081181,88909.0,88879.0,0.01125125]
[1766726527023,0.02430853,88898.0,88881.0,0.26343099]
[1766726527199,0.0105507,88892.0,88881.0,0.25218]
[1766726527400,0.0105507,88891.0,88881.0,0.25218]
[1766726527608,0.0105507,88890.0,88881.0,0.25218]
[1766726527829,0.0105507,88889.0,88881.0,0.25218]
[1766726527990,0.01224947,88893.0,88881.0,0.25218]
[1766726528194,0.0105504,88892.0,88881.0,0.25218]
[1766726528413,0.0105504,88891.0,88881.0,0.25218]
[1766726528630,0.0105504,88890.0,88881.0,0.25218]
[1766726528826,0.0105504,88889.0,88881.0,0.25218]
[1766726529035,0.0112496,88892.0,88881.0,0.25218]
[1766726529234,0.01055021,88891.0,88881.0,0.25218]
[1766726529430,0.01055021,88890.0,88881.0,0.25218]
[1766726529631,0.0112496,88892.0,88881.0,0.25218]
[1766726529632,0.01055021,88889.0,88881.0,0.25218]
[1766726529811,0.06749793,88892.0,88881.0,0.25218]
[1766726530013,0.02179988,88891.0,88881.0,0.25218]
[1766726530255,0.01055015,88890.0,88881.0,0.25218]
[1766726530451,0.01055015,88889.0,88881.0,0.25218]
[1766726531748,0.01124973,88891.0,88881.0,0.25218]
[1766726531948,0.01055033,88890.0,88881.0,0.25218]
[1766726532153,0.01055033,88889.0,88882.0,0.01128]
[1766726532393,0.01055033,88888.0,88882.0,0.01128]
[1766726532552,0.01124985,88890.0,88883.0,1e-08]
[1766726532764,0.01055052,88889.0,88883.0,1e-08]
[1766726532969,0.01055052,88888.0,88883.0,1e-08]
[1766726533172,0.01124985,88890.0,88883.0,1e-08]
[1766726533373,0.0105506,88889.0,88883.0,1e-08]
[1766726533533,0.01124985,88890.0,88883.0,1e-08]
[1766726533534,0.0105506,88888.0,88883.0,1e-08]
[1766726533741,0.01124985,88890.0,88883.0,1e-08]
[1766726533953,0.0105506,88889.0,88883.0,1e-08]
[1766726534149,0.01124985,88890.0,88883.0,1e-08]
[1766726534150,0.0105506,88888.0,88883.0,1e-08]
[1766726534412,0.01124985,88890.0,88883.0,1e-08]
[1766726534612,0.01055072,88889.0,88883.0,1e-08]
[1766726534752,0.01055072,88888.0,88883.0,1e-08]
[1766726534960,0.01124985,88890.0,88883.0,1e-08]
[1766726535170,0.01055071,88889.0,88883.0,1e-08]
[1766726535368,0.01055071,88888.0,88883.0,1e-08]
[1766726535574,0.01124973,88891.0,88883.0,1e-08]
[1766726535829,0.01124998,88889.0,88883.0,1e-08]
[1766726536133,0.01125023,88887.0,88883.0,1e-08]
[1766726536303,0.01125036,88886.0,88884.0,0.01128]
[1766726536504,0.01125036,88886.0,88885.0,0.01128]
[1766726536836,0.01125049,88885.0,88875.0,0.21104]
[1766726537028,0.01128,88885.0,88877.0,0.045]
[1766726537604,0.02253049,88885.0,88877.0,0.045]
[1766726537807,0.01128,88885.0,88877.0,0.045]
[1766726538005,0.02253049,88885.0,88877.0,0.045]
[1766726538341,0.01128,88885.0,88877.0,0.045]
[1766726538565,0.01128,88885.0,88875.0,0.21104]
[1766726538765,0.001099,88877.0,88876.0,0.05628]
[1766726539105,0.01125074,88883.0,88876.0,0.05628]
[1766726539347,0.01125074,88883.0,88868.0,0.21104]
[1766726539796,0.01125087,88882.0,88869.0,0.01128]
[1766726540206,0.01125074,88883.0,88869.0,0.01128]
[1766726542798,0.01125087,88882.0,88869.0,0.01128]
[1766726544355,0.01125074,88883.0,88869.0,0.01128]
[1766726544808,0.01125074,88883.0,88868.0,0.21104]
[1766726545032,0.01125087,88882.0,88870.0,0.01128]
[1766726545595,0.01125074,88883.0,88870.0,0.01128]
[1766726546006,0.06750417,88884.0,88870.0,0.01128]